{"text_format":"3","workbook":"xlsx","n_sheets":3,"sheets":["Läbitud vahemaa logi","Logi andmed","Arvutused"],"not_rendered":{"charts":1,"defined_names":18},"read":"whole","date_system":"1900"}

{"sheet":"Läbitud vahemaa logi","index":0,"n_rows":29,"n_cols":5,"rows_kept":29,"merged":[[0,1,1,4]]}
[null,"LÄBITUD VAHEMAA LOGI"]
{"$rows_empty":9}
[null,null,"HÜVITATAVAD",null,"KOKKU"]
[null,null,"KILOMEETRID",null,"KULUHÜVITIS"]
[]
[]
[]
[]
[null,null,"2012-05-01",null,"2012-05-10"]
[]
[null,null,"PERIOOD",null,"PERIOOD"]
[null,null,"ALGUS",null,"LÕPP"]
[]
[]
[]
[]
[]
[null,null,54,null,{"v":9800,"d":"9,800"}]
[]
[null,null,"KULUHÜVITIS",null,"EELMINE KÜTUS"]
[null,null,"s/km",null,"HODOMEETER"]

{"sheet":"Logi andmed","index":1,"n_rows":19,"n_cols":15,"rows_kept":19,"merged":[[0,1,1,4]]}
[null,"LÄBITUD VAHEMAA LOGI"]
[{"$nulls":14}," "]
[]
[]
[null,"KUUPÄEV","TEGEVUS","HODOM. 1","ASUKOHT","HODOM. 2","SIHTKOHT","HÜVITIS","LIITRID","KULU","KILOMEETRID","km/l","s/km","MÄRKMED"]
[null,"2012-05-01","Reis",{"v":10123,"d":"10,123"},"Chevron – Uus tn",{"v":10130,"d":"10,130"},null,null,15.56,{"v":20.07,"d":"20.07 €"},{"$f":"Kilomeetrid","v":7},{"$f":"IF(OR(LEN(Andmed[[#This Row],[HODOM. 2]]),Andmed[[#This Row],[HODOM. 1]]=\"\"),\"\",IFERROR(Andmed[[#This Row],[KILOMEETRID]]/Andmed[[#This Row],[LIITRID]],\"\"))","v":""},{"$f":"IF(Andmed[[#This Row],[km/l]]=\"\",\"\",100*Andmed[[#This Row],[KULU]]/Andmed[[#This Row],[KILOMEETRID]])","v":""}]
[null,"2012-05-01","Reis",{"v":10130,"d":"10,130"},"Kontor",{"v":10200,"d":"10,200"},"Kirsi tänav","Jah",null,"",{"$f":"Kilomeetrid","v":70},{"$f":"IF(OR(LEN(Andmed[[#This Row],[HODOM. 2]]),Andmed[[#This Row],[HODOM. 1]]=\"\"),\"\",IFERROR(Andmed[[#This Row],[KILOMEETRID]]/Andmed[[#This Row],[LIITRID]],\"\"))","v":""},{"$f":"IF(Andmed[[#This Row],[km/l]]=\"\",\"\",100*Andmed[[#This Row],[KULU]]/Andmed[[#This Row],[KILOMEETRID]])","v":""}]
[null,"2012-05-01","Reis",{"v":10200,"d":"10,200"},"Smithfields",{"v":10285,"d":"10,285"},"Kontor","Jah",null,"",{"$f":"Kilomeetrid","v":85},{"$f":"IF(OR(LEN(Andmed[[#This Row],[HODOM. 2]]),Andmed[[#This Row],[HODOM. 1]]=\"\"),\"\",IFERROR(Andmed[[#This Row],[KILOMEETRID]]/Andmed[[#This Row],[LIITRID]],\"\"))","v":""},{"$f":"IF(Andmed[[#This Row],[km/l]]=\"\",\"\",100*Andmed[[#This Row],[KULU]]/Andmed[[#This Row],[KILOMEETRID]])","v":""}]
[null,"2012-05-02","Reis",{"v":10285,"d":"10,285"},"Kontor",{"v":10450,"d":"10,450"},"Colo Vineyard","Jah",null,"",{"$f":"Kilomeetrid","v":165},{"$f":"IF(OR(LEN(Andmed[[#This Row],[HODOM. 2]]),Andmed[[#This Row],[HODOM. 1]]=\"\"),\"\",IFERROR(Andmed[[#This Row],[KILOMEETRID]]/Andmed[[#This Row],[LIITRID]],\"\"))","v":""},{"$f":"IF(Andmed[[#This Row],[km/l]]=\"\",\"\",100*Andmed[[#This Row],[KULU]]/Andmed[[#This Row],[KILOMEETRID]])","v":""}]
[null,"2012-05-02","Kütus",{"v":10450,"d":"10,450"},"Shell",{"$nulls":3},{"v":11.2,"d":"11.20"},{"v":14.22,"d":"14.22 €"},{"$f":"Kilomeetrid","v":650},{"$f":"IF(OR(LEN(Andmed[[#This Row],[HODOM. 2]]),Andmed[[#This Row],[HODOM. 1]]=\"\"),\"\",IFERROR(Andmed[[#This Row],[KILOMEETRID]]/Andmed[[#This Row],[LIITRID]],\"\"))","v":{"v":58.03571428571429,"d":"58.0"}},{"$f":"IF(Andmed[[#This Row],[km/l]]=\"\",\"\",100*Andmed[[#This Row],[KULU]]/Andmed[[#This Row],[KILOMEETRID]])","v":{"v":2.187692307692308,"d":"2.2"}}]
[null,"2012-05-02","Reis",{"v":10500,"d":"10,500"},"Colo Vineyard",{"v":10518,"d":"10,518"},"Kontor","Jah",null,"",{"$f":"Kilomeetrid","v":18},{"$f":"IF(OR(LEN(Andmed[[#This Row],[HODOM. 2]]),Andmed[[#This Row],[HODOM. 1]]=\"\"),\"\",IFERROR(Andmed[[#This Row],[KILOMEETRID]]/Andmed[[#This Row],[LIITRID]],\"\"))","v":""},{"$f":"IF(Andmed[[#This Row],[km/l]]=\"\",\"\",100*Andmed[[#This Row],[KULU]]/Andmed[[#This Row],[KILOMEETRID]])","v":""}]
[null,"2012-05-03","Reis",{"v":10518,"d":"10,518"},"Kontor",{"v":10745,"d":"10,745"},"Kontor","Jah",null,"",{"$f":"Kilomeetrid","v":227},{"$f":"IF(OR(LEN(Andmed[[#This Row],[HODOM. 2]]),Andmed[[#This Row],[HODOM. 1]]=\"\"),\"\",IFERROR(Andmed[[#This Row],[KILOMEETRID]]/Andmed[[#This Row],[LIITRID]],\"\"))","v":""},{"$f":"IF(Andmed[[#This Row],[km/l]]=\"\",\"\",100*Andmed[[#This Row],[KULU]]/Andmed[[#This Row],[KILOMEETRID]])","v":""}]
[null,"2012-05-04","Kütus",{"v":10745,"d":"10,745"},"Chevron – Uus tn",{"$nulls":3},{"v":16.6,"d":"16.60"},{"v":21.25,"d":"21.25 €"},{"$f":"Kilomeetrid","v":295},{"$f":"IF(OR(LEN(Andmed[[#This Row],[HODOM. 2]]),Andmed[[#This Row],[HODOM. 1]]=\"\"),\"\",IFERROR(Andmed[[#This Row],[KILOMEETRID]]/Andmed[[#This Row],[LIITRID]],\"\"))","v":{"v":17.771084337349397,"d":"17.8"}},{"$f":"IF(Andmed[[#This Row],[km/l]]=\"\",\"\",100*Andmed[[#This Row],[KULU]]/Andmed[[#This Row],[KILOMEETRID]])","v":{"v":7.203389830508475,"d":"7.2"}}]
[null,"2012-05-04","Reis",{"v":10745,"d":"10,745"},"Kontor",{"v":10800,"d":"10,800"},"Porterville","Jah",null,"",{"$f":"Kilomeetrid","v":55},{"$f":"IF(OR(LEN(Andmed[[#This Row],[HODOM. 2]]),Andmed[[#This Row],[HODOM. 1]]=\"\"),\"\",IFERROR(Andmed[[#This Row],[KILOMEETRID]]/Andmed[[#This Row],[LIITRID]],\"\"))","v":""},{"$f":"IF(Andmed[[#This Row],[km/l]]=\"\",\"\",100*Andmed[[#This Row],[KULU]]/Andmed[[#This Row],[KILOMEETRID]])","v":""}]
[null,"2012-05-04","Reis",{"v":10800,"d":"10,800"},"Porterville",{"v":10875,"d":"10,875"},"Kontor","Jah",null,"",{"$f":"Kilomeetrid","v":75},{"$f":"IF(OR(LEN(Andmed[[#This Row],[HODOM. 2]]),Andmed[[#This Row],[HODOM. 1]]=\"\"),\"\",IFERROR(Andmed[[#This Row],[KILOMEETRID]]/Andmed[[#This Row],[LIITRID]],\"\"))","v":""},{"$f":"IF(Andmed[[#This Row],[km/l]]=\"\",\"\",100*Andmed[[#This Row],[KULU]]/Andmed[[#This Row],[KILOMEETRID]])","v":""}]
[null,"2012-05-07","Reis",{"v":10875,"d":"10,875"},"Kontor",{"v":10921,"d":"10,921"},"Kirsi tänav","Jah",null,"",{"$f":"Kilomeetrid","v":46},{"$f":"IF(OR(LEN(Andmed[[#This Row],[HODOM. 2]]),Andmed[[#This Row],[HODOM. 1]]=\"\"),\"\",IFERROR(Andmed[[#This Row],[KILOMEETRID]]/Andmed[[#This Row],[LIITRID]],\"\"))","v":""},{"$f":"IF(Andmed[[#This Row],[km/l]]=\"\",\"\",100*Andmed[[#This Row],[KULU]]/Andmed[[#This Row],[KILOMEETRID]])","v":""}]
[null,"2012-05-07","Reis",{"v":10921,"d":"10,921"},"Smithfields",{"v":10969,"d":"10,969"},"Kontor","Jah",null,"",{"$f":"Kilomeetrid","v":48},{"$f":"IF(OR(LEN(Andmed[[#This Row],[HODOM. 2]]),Andmed[[#This Row],[HODOM. 1]]=\"\"),\"\",IFERROR(Andmed[[#This Row],[KILOMEETRID]]/Andmed[[#This Row],[LIITRID]],\"\"))","v":""},{"$f":"IF(Andmed[[#This Row],[km/l]]=\"\",\"\",100*Andmed[[#This Row],[KULU]]/Andmed[[#This Row],[KILOMEETRID]])","v":""}]
[null,"2012-05-09","Reis",{"v":10969,"d":"10,969"},"Kontor",{"v":11000,"d":"11,000"},"Riverside","Jah",null,"",{"$f":"Kilomeetrid","v":31},{"$f":"IF(OR(LEN(Andmed[[#This Row],[HODOM. 2]]),Andmed[[#This Row],[HODOM. 1]]=\"\"),\"\",IFERROR(Andmed[[#This Row],[KILOMEETRID]]/Andmed[[#This Row],[LIITRID]],\"\"))","v":""},{"$f":"IF(Andmed[[#This Row],[km/l]]=\"\",\"\",100*Andmed[[#This Row],[KULU]]/Andmed[[#This Row],[KILOMEETRID]])","v":""}]
[null,"2012-05-09","Reis",{"v":11000,"d":"11,000"},"Riverside",{"v":11100,"d":"11,100"},"Kodu","Ei",null,"",{"$f":"Kilomeetrid","v":100},{"$f":"IF(OR(LEN(Andmed[[#This Row],[HODOM. 2]]),Andmed[[#This Row],[HODOM. 1]]=\"\"),\"\",IFERROR(Andmed[[#This Row],[KILOMEETRID]]/Andmed[[#This Row],[LIITRID]],\"\"))","v":""},{"$f":"IF(Andmed[[#This Row],[km/l]]=\"\",\"\",100*Andmed[[#This Row],[KULU]]/Andmed[[#This Row],[KILOMEETRID]])","v":""}]

{"sheet":"Arvutused","index":2,"n_rows":69,"n_cols":13,"rows_kept":69,"hidden":true}
["*** See leht jääb varjatuks ***"]
[]
[]
[]
[]
[{"$nulls":8},{"$f":"OFFSET(I9,,teineTelg=\"kütuse maksumus\")","v":"s/km"}]
[{"$nulls":12},2]
[{"$nulls":7},"Reis","Kütus","Kütus",null,"Teine telg:  ",{"$f":"REPT(\"Miili/galloni\",M7=1)&REPT(\"kütuse maksumus\",M7=2)","v":"kütuse maksumus"}]
[{"$nulls":7},"Läbitud kilomeetrid","km/l","s/km"]
[null,null,"Hüvitatavad miilid:  ",{"$f":"SUMIFS(Andmed[KILOMEETRID],Andmed[HÜVITIS],\"Jah\",Andmed[KUUPÄEV],\">=\"&perioodiAlgus,Andmed[KUUPÄEV],\"<=\"&periioodiLõpp)","v":820},null,1,{"$f":"perioodiAlgus","v":"2012-05-01"},{"$f":"SUMIFS(Andmed[KILOMEETRID],Andmed[KUUPÄEV],G10,Andmed[TEGEVUS],$H$8)","v":162},{"$f":"IFERROR(AVERAGEIFS(Andmed[km/l],Andmed[KUUPÄEV],G10,Andmed[TEGEVUS],$I$8),NA())","v":{"$error":"#N/A"}},{"$f":"IFERROR(AVERAGEIFS(Andmed[s/km],Andmed[KUUPÄEV],G10,Andmed[TEGEVUS],$J$8),NA())","v":{"$error":"#N/A"}}]
[null,null,"Kuluhüvitis kokku:  ",{"$f":"D10*HüvitisKilomeetriKohta/100","v":{"v":442.8,"d":"442.80 €"}},null,2,{"$f":"G10+1","v":"2012-05-02"},{"$f":"SUMIFS(Andmed[KILOMEETRID],Andmed[KUUPÄEV],G11,Andmed[TEGEVUS],$H$8)","v":183},{"$f":"IFERROR(AVERAGEIFS(Andmed[km/l],Andmed[KUUPÄEV],G11,Andmed[TEGEVUS],$I$8),NA())","v":{"v":58.03571428571429,"d":"58.0"}},{"$f":"IFERROR(AVERAGEIFS(Andmed[s/km],Andmed[KUUPÄEV],G11,Andmed[TEGEVUS],$J$8),NA())","v":{"v":2.187692307692308,"d":"2.2"}}]
[{"$nulls":5},3,"2012-05-03",{"$f":"SUMIFS(Andmed[KILOMEETRID],Andmed[KUUPÄEV],G12,Andmed[TEGEVUS],$H$8)","v":227},{"$f":"IFERROR(AVERAGEIFS(Andmed[km/l],Andmed[KUUPÄEV],G12,Andmed[TEGEVUS],$I$8),NA())","v":{"$error":"#N/A"}},{"$f":"IFERROR(AVERAGEIFS(Andmed[s/km],Andmed[KUUPÄEV],G12,Andmed[TEGEVUS],$J$8),NA())","v":{"$error":"#N/A"}}]
[{"$nulls":5},4,"2012-05-04",{"$f":"SUMIFS(Andmed[KILOMEETRID],Andmed[KUUPÄEV],G13,Andmed[TEGEVUS],$H$8)","v":130},{"$f":"IFERROR(AVERAGEIFS(Andmed[km/l],Andmed[KUUPÄEV],G13,Andmed[TEGEVUS],$I$8),NA())","v":{"v":17.771084337349397,"d":"17.8"}},{"$f":"IFERROR(AVERAGEIFS(Andmed[s/km],Andmed[KUUPÄEV],G13,Andmed[TEGEVUS],$J$8),NA())","v":{"v":7.203389830508475,"d":"7.2"}}]
[{"$nulls":5},5,"2012-05-05",{"$f":"SUMIFS(Andmed[KILOMEETRID],Andmed[KUUPÄEV],G14,Andmed[TEGEVUS],$H$8)","v":0},{"$f":"IFERROR(AVERAGEIFS(Andmed[km/l],Andmed[KUUPÄEV],G14,Andmed[TEGEVUS],$I$8),NA())","v":{"$error":"#N/A"}},{"$f":"IFERROR(AVERAGEIFS(Andmed[s/km],Andmed[KUUPÄEV],G14,Andmed[TEGEVUS],$J$8),NA())","v":{"$error":"#N/A"}}]
[{"$nulls":5},6,"2012-05-06",{"$f":"SUMIFS(Andmed[KILOMEETRID],Andmed[KUUPÄEV],G15,Andmed[TEGEVUS],$H$8)","v":0},{"$f":"IFERROR(AVERAGEIFS(Andmed[km/l],Andmed[KUUPÄEV],G15,Andmed[TEGEVUS],$I$8),NA())","v":{"$error":"#N/A"}},{"$f":"IFERROR(AVERAGEIFS(Andmed[s/km],Andmed[KUUPÄEV],G15,Andmed[TEGEVUS],$J$8),NA())","v":{"$error":"#N/A"}}]
[{"$nulls":5},7,"2012-05-07",{"$f":"SUMIFS(Andmed[KILOMEETRID],Andmed[KUUPÄEV],G16,Andmed[TEGEVUS],$H$8)","v":94},{"$f":"IFERROR(AVERAGEIFS(Andmed[km/l],Andmed[KUUPÄEV],G16,Andmed[TEGEVUS],$I$8),NA())","v":{"$error":"#N/A"}},{"$f":"IFERROR(AVERAGEIFS(Andmed[s/km],Andmed[KUUPÄEV],G16,Andmed[TEGEVUS],$J$8),NA())","v":{"$error":"#N/A"}}]
[{"$nulls":5},8,"2012-05-08",{"$f":"SUMIFS(Andmed[KILOMEETRID],Andmed[KUUPÄEV],G17,Andmed[TEGEVUS],$H$8)","v":0},{"$f":"IFERROR(AVERAGEIFS(Andmed[km/l],Andmed[KUUPÄEV],G17,Andmed[TEGEVUS],$I$8),NA())","v":{"$error":"#N/A"}},{"$f":"IFERROR(AVERAGEIFS(Andmed[s/km],Andmed[KUUPÄEV],G17,Andmed[TEGEVUS],$J$8),NA())","v":{"$error":"#N/A"}}]
[{"$nulls":5},9,"2012-05-09",{"$f":"SUMIFS(Andmed[KILOMEETRID],Andmed[KUUPÄEV],G18,Andmed[TEGEVUS],$H$8)","v":131},{"$f":"IFERROR(AVERAGEIFS(Andmed[km/l],Andmed[KUUPÄEV],G18,Andmed[TEGEVUS],$I$8),NA())","v":{"$error":"#N/A"}},{"$f":"IFERROR(AVERAGEIFS(Andmed[s/km],Andmed[KUUPÄEV],G18,Andmed[TEGEVUS],$J$8),NA())","v":{"$error":"#N/A"}}]
[{"$nulls":5},10,"2012-05-10",{"$f":"SUMIFS(Andmed[KILOMEETRID],Andmed[KUUPÄEV],G19,Andmed[TEGEVUS],$H$8)","v":0},{"$f":"IFERROR(AVERAGEIFS(Andmed[km/l],Andmed[KUUPÄEV],G19,Andmed[TEGEVUS],$I$8),NA())","v":{"$error":"#N/A"}},{"$f":"IFERROR(AVERAGEIFS(Andmed[s/km],Andmed[KUUPÄEV],G19,Andmed[TEGEVUS],$J$8),NA())","v":{"$error":"#N/A"}}]
[{"$nulls":5},11,"2012-05-11",{"$f":"SUMIFS(Andmed[KILOMEETRID],Andmed[KUUPÄEV],G20,Andmed[TEGEVUS],$H$8)","v":0},{"$f":"IFERROR(AVERAGEIFS(Andmed[km/l],Andmed[KUUPÄEV],G20,Andmed[TEGEVUS],$I$8),NA())","v":{"$error":"#N/A"}},{"$f":"IFERROR(AVERAGEIFS(Andmed[s/km],Andmed[KUUPÄEV],G20,Andmed[TEGEVUS],$J$8),NA())","v":{"$error":"#N/A"}}]
[{"$nulls":5},12,"2012-05-12",{"$f":"SUMIFS(Andmed[KILOMEETRID],Andmed[KUUPÄEV],G21,Andmed[TEGEVUS],$H$8)","v":0},{"$f":"IFERROR(AVERAGEIFS(Andmed[km/l],Andmed[KUUPÄEV],G21,Andmed[TEGEVUS],$I$8),NA())","v":{"$error":"#N/A"}},{"$f":"IFERROR(AVERAGEIFS(Andmed[s/km],Andmed[KUUPÄEV],G21,Andmed[TEGEVUS],$J$8),NA())","v":{"$error":"#N/A"}}]
[{"$nulls":5},13,"2012-05-13",{"$f":"SUMIFS(Andmed[KILOMEETRID],Andmed[KUUPÄEV],G22,Andmed[TEGEVUS],$H$8)","v":0},{"$f":"IFERROR(AVERAGEIFS(Andmed[km/l],Andmed[KUUPÄEV],G22,Andmed[TEGEVUS],$I$8),NA())","v":{"$error":"#N/A"}},{"$f":"IFERROR(AVERAGEIFS(Andmed[s/km],Andmed[KUUPÄEV],G22,Andmed[TEGEVUS],$J$8),NA())","v":{"$error":"#N/A"}}]
[{"$nulls":5},14,"2012-05-14",{"$f":"SUMIFS(Andmed[KILOMEETRID],Andmed[KUUPÄEV],G23,Andmed[TEGEVUS],$H$8)","v":0},{"$f":"IFERROR(AVERAGEIFS(Andmed[km/l],Andmed[KUUPÄEV],G23,Andmed[TEGEVUS],$I$8),NA())","v":{"$error":"#N/A"}},{"$f":"IFERROR(AVERAGEIFS(Andmed[s/km],Andmed[KUUPÄEV],G23,Andmed[TEGEVUS],$J$8),NA())","v":{"$error":"#N/A"}}]
[{"$nulls":5},15,"2012-05-15",{"$f":"SUMIFS(Andmed[KILOMEETRID],Andmed[KUUPÄEV],G24,Andmed[TEGEVUS],$H$8)","v":0},{"$f":"IFERROR(AVERAGEIFS(Andmed[km/l],Andmed[KUUPÄEV],G24,Andmed[TEGEVUS],$I$8),NA())","v":{"$error":"#N/A"}},{"$f":"IFERROR(AVERAGEIFS(Andmed[s/km],Andmed[KUUPÄEV],G24,Andmed[TEGEVUS],$J$8),NA())","v":{"$error":"#N/A"}}]
[{"$nulls":5},16,"2012-05-16",{"$f":"SUMIFS(Andmed[KILOMEETRID],Andmed[KUUPÄEV],G25,Andmed[TEGEVUS],$H$8)","v":0},{"$f":"IFERROR(AVERAGEIFS(Andmed[km/l],Andmed[KUUPÄEV],G25,Andmed[TEGEVUS],$I$8),NA())","v":{"$error":"#N/A"}},{"$f":"IFERROR(AVERAGEIFS(Andmed[s/km],Andmed[KUUPÄEV],G25,Andmed[TEGEVUS],$J$8),NA())","v":{"$error":"#N/A"}}]
[{"$nulls":5},17,"2012-05-17",{"$f":"SUMIFS(Andmed[KILOMEETRID],Andmed[KUUPÄEV],G26,Andmed[TEGEVUS],$H$8)","v":0},{"$f":"IFERROR(AVERAGEIFS(Andmed[km/l],Andmed[KUUPÄEV],G26,Andmed[TEGEVUS],$I$8),NA())","v":{"$error":"#N/A"}},{"$f":"IFERROR(AVERAGEIFS(Andmed[s/km],Andmed[KUUPÄEV],G26,Andmed[TEGEVUS],$J$8),NA())","v":{"$error":"#N/A"}}]
[{"$nulls":5},18,"2012-05-18",{"$f":"SUMIFS(Andmed[KILOMEETRID],Andmed[KUUPÄEV],G27,Andmed[TEGEVUS],$H$8)","v":0},{"$f":"IFERROR(AVERAGEIFS(Andmed[km/l],Andmed[KUUPÄEV],G27,Andmed[TEGEVUS],$I$8),NA())","v":{"$error":"#N/A"}},{"$f":"IFERROR(AVERAGEIFS(Andmed[s/km],Andmed[KUUPÄEV],G27,Andmed[TEGEVUS],$J$8),NA())","v":{"$error":"#N/A"}}]
[{"$nulls":5},19,"2012-05-19",{"$f":"SUMIFS(Andmed[KILOMEETRID],Andmed[KUUPÄEV],G28,Andmed[TEGEVUS],$H$8)","v":0},{"$f":"IFERROR(AVERAGEIFS(Andmed[km/l],Andmed[KUUPÄEV],G28,Andmed[TEGEVUS],$I$8),NA())","v":{"$error":"#N/A"}},{"$f":"IFERROR(AVERAGEIFS(Andmed[s/km],Andmed[KUUPÄEV],G28,Andmed[TEGEVUS],$J$8),NA())","v":{"$error":"#N/A"}}]
[{"$nulls":5},20,"2012-05-20",{"$f":"SUMIFS(Andmed[KILOMEETRID],Andmed[KUUPÄEV],G29,Andmed[TEGEVUS],$H$8)","v":0},{"$f":"IFERROR(AVERAGEIFS(Andmed[km/l],Andmed[KUUPÄEV],G29,Andmed[TEGEVUS],$I$8),NA())","v":{"$error":"#N/A"}},{"$f":"IFERROR(AVERAGEIFS(Andmed[s/km],Andmed[KUUPÄEV],G29,Andmed[TEGEVUS],$J$8),NA())","v":{"$error":"#N/A"}}]
[{"$nulls":5},21,"2012-05-21",{"$f":"SUMIFS(Andmed[KILOMEETRID],Andmed[KUUPÄEV],G30,Andmed[TEGEVUS],$H$8)","v":0},{"$f":"IFERROR(AVERAGEIFS(Andmed[km/l],Andmed[KUUPÄEV],G30,Andmed[TEGEVUS],$I$8),NA())","v":{"$error":"#N/A"}},{"$f":"IFERROR(AVERAGEIFS(Andmed[s/km],Andmed[KUUPÄEV],G30,Andmed[TEGEVUS],$J$8),NA())","v":{"$error":"#N/A"}}]
[{"$nulls":5},22,"2012-05-22",{"$f":"SUMIFS(Andmed[KILOMEETRID],Andmed[KUUPÄEV],G31,Andmed[TEGEVUS],$H$8)","v":0},{"$f":"IFERROR(AVERAGEIFS(Andmed[km/l],Andmed[KUUPÄEV],G31,Andmed[TEGEVUS],$I$8),NA())","v":{"$error":"#N/A"}},{"$f":"IFERROR(AVERAGEIFS(Andmed[s/km],Andmed[KUUPÄEV],G31,Andmed[TEGEVUS],$J$8),NA())","v":{"$error":"#N/A"}}]
[{"$nulls":5},23,"2012-05-23",{"$f":"SUMIFS(Andmed[KILOMEETRID],Andmed[KUUPÄEV],G32,Andmed[TEGEVUS],$H$8)","v":0},{"$f":"IFERROR(AVERAGEIFS(Andmed[km/l],Andmed[KUUPÄEV],G32,Andmed[TEGEVUS],$I$8),NA())","v":{"$error":"#N/A"}},{"$f":"IFERROR(AVERAGEIFS(Andmed[s/km],Andmed[KUUPÄEV],G32,Andmed[TEGEVUS],$J$8),NA())","v":{"$error":"#N/A"}}]
[{"$nulls":5},24,"2012-05-24",{"$f":"SUMIFS(Andmed[KILOMEETRID],Andmed[KUUPÄEV],G33,Andmed[TEGEVUS],$H$8)","v":0},{"$f":"IFERROR(AVERAGEIFS(Andmed[km/l],Andmed[KUUPÄEV],G33,Andmed[TEGEVUS],$I$8),NA())","v":{"$error":"#N/A"}},{"$f":"IFERROR(AVERAGEIFS(Andmed[s/km],Andmed[KUUPÄEV],G33,Andmed[TEGEVUS],$J$8),NA())","v":{"$error":"#N/A"}}]
[{"$nulls":5},25,"2012-05-25",{"$f":"SUMIFS(Andmed[KILOMEETRID],Andmed[KUUPÄEV],G34,Andmed[TEGEVUS],$H$8)","v":0},{"$f":"IFERROR(AVERAGEIFS(Andmed[km/l],Andmed[KUUPÄEV],G34,Andmed[TEGEVUS],$I$8),NA())","v":{"$error":"#N/A"}},{"$f":"IFERROR(AVERAGEIFS(Andmed[s/km],Andmed[KUUPÄEV],G34,Andmed[TEGEVUS],$J$8),NA())","v":{"$error":"#N/A"}}]
[{"$nulls":5},26,"2012-05-26",{"$f":"SUMIFS(Andmed[KILOMEETRID],Andmed[KUUPÄEV],G35,Andmed[TEGEVUS],$H$8)","v":0},{"$f":"IFERROR(AVERAGEIFS(Andmed[km/l],Andmed[KUUPÄEV],G35,Andmed[TEGEVUS],$I$8),NA())","v":{"$error":"#N/A"}},{"$f":"IFERROR(AVERAGEIFS(Andmed[s/km],Andmed[KUUPÄEV],G35,Andmed[TEGEVUS],$J$8),NA())","v":{"$error":"#N/A"}}]
[{"$nulls":5},27,"2012-05-27",{"$f":"SUMIFS(Andmed[KILOMEETRID],Andmed[KUUPÄEV],G36,Andmed[TEGEVUS],$H$8)","v":0},{"$f":"IFERROR(AVERAGEIFS(Andmed[km/l],Andmed[KUUPÄEV],G36,Andmed[TEGEVUS],$I$8),NA())","v":{"$error":"#N/A"}},{"$f":"IFERROR(AVERAGEIFS(Andmed[s/km],Andmed[KUUPÄEV],G36,Andmed[TEGEVUS],$J$8),NA())","v":{"$error":"#N/A"}}]
[{"$nulls":5},28,"2012-05-28",{"$f":"SUMIFS(Andmed[KILOMEETRID],Andmed[KUUPÄEV],G37,Andmed[TEGEVUS],$H$8)","v":0},{"$f":"IFERROR(AVERAGEIFS(Andmed[km/l],Andmed[KUUPÄEV],G37,Andmed[TEGEVUS],$I$8),NA())","v":{"$error":"#N/A"}},{"$f":"IFERROR(AVERAGEIFS(Andmed[s/km],Andmed[KUUPÄEV],G37,Andmed[TEGEVUS],$J$8),NA())","v":{"$error":"#N/A"}}]
[{"$nulls":5},29,"2012-05-29",{"$f":"SUMIFS(Andmed[KILOMEETRID],Andmed[KUUPÄEV],G38,Andmed[TEGEVUS],$H$8)","v":0},{"$f":"IFERROR(AVERAGEIFS(Andmed[km/l],Andmed[KUUPÄEV],G38,Andmed[TEGEVUS],$I$8),NA())","v":{"$error":"#N/A"}},{"$f":"IFERROR(AVERAGEIFS(Andmed[s/km],Andmed[KUUPÄEV],G38,Andmed[TEGEVUS],$J$8),NA())","v":{"$error":"#N/A"}}]
[{"$nulls":5},30,"2012-05-30",{"$f":"SUMIFS(Andmed[KILOMEETRID],Andmed[KUUPÄEV],G39,Andmed[TEGEVUS],$H$8)","v":0},{"$f":"IFERROR(AVERAGEIFS(Andmed[km/l],Andmed[KUUPÄEV],G39,Andmed[TEGEVUS],$I$8),NA())","v":{"$error":"#N/A"}},{"$f":"IFERROR(AVERAGEIFS(Andmed[s/km],Andmed[KUUPÄEV],G39,Andmed[TEGEVUS],$J$8),NA())","v":{"$error":"#N/A"}}]
[{"$nulls":5},31,"2012-05-31",{"$f":"SUMIFS(Andmed[KILOMEETRID],Andmed[KUUPÄEV],G40,Andmed[TEGEVUS],$H$8)","v":0},{"$f":"IFERROR(AVERAGEIFS(Andmed[km/l],Andmed[KUUPÄEV],G40,Andmed[TEGEVUS],$I$8),NA())","v":{"$error":"#N/A"}},{"$f":"IFERROR(AVERAGEIFS(Andmed[s/km],Andmed[KUUPÄEV],G40,Andmed[TEGEVUS],$J$8),NA())","v":{"$error":"#N/A"}}]
[{"$nulls":5},32,"2012-06-01",{"$f":"SUMIFS(Andmed[KILOMEETRID],Andmed[KUUPÄEV],G41,Andmed[TEGEVUS],$H$8)","v":0},{"$f":"IFERROR(AVERAGEIFS(Andmed[km/l],Andmed[KUUPÄEV],G41,Andmed[TEGEVUS],$I$8),NA())","v":{"$error":"#N/A"}},{"$f":"IFERROR(AVERAGEIFS(Andmed[s/km],Andmed[KUUPÄEV],G41,Andmed[TEGEVUS],$J$8),NA())","v":{"$error":"#N/A"}}]
[{"$nulls":5},33,"2012-06-02",{"$f":"SUMIFS(Andmed[KILOMEETRID],Andmed[KUUPÄEV],G42,Andmed[TEGEVUS],$H$8)","v":0},{"$f":"IFERROR(AVERAGEIFS(Andmed[km/l],Andmed[KUUPÄEV],G42,Andmed[TEGEVUS],$I$8),NA())","v":{"$error":"#N/A"}},{"$f":"IFERROR(AVERAGEIFS(Andmed[s/km],Andmed[KUUPÄEV],G42,Andmed[TEGEVUS],$J$8),NA())","v":{"$error":"#N/A"}}]
[{"$nulls":5},34,{"$f":"G42+1","v":"2012-06-03"},{"$f":"SUMIFS(Andmed[KILOMEETRID],Andmed[KUUPÄEV],G43,Andmed[TEGEVUS],$H$8)","v":0},{"$f":"IFERROR(AVERAGEIFS(Andmed[km/l],Andmed[KUUPÄEV],G43,Andmed[TEGEVUS],$I$8),NA())","v":{"$error":"#N/A"}},{"$f":"IFERROR(AVERAGEIFS(Andmed[s/km],Andmed[KUUPÄEV],G43,Andmed[TEGEVUS],$J$8),NA())","v":{"$error":"#N/A"}}]
[{"$nulls":5},35,"2012-06-04",{"$f":"SUMIFS(Andmed[KILOMEETRID],Andmed[KUUPÄEV],G44,Andmed[TEGEVUS],$H$8)","v":0},{"$f":"IFERROR(AVERAGEIFS(Andmed[km/l],Andmed[KUUPÄEV],G44,Andmed[TEGEVUS],$I$8),NA())","v":{"$error":"#N/A"}},{"$f":"IFERROR(AVERAGEIFS(Andmed[s/km],Andmed[KUUPÄEV],G44,Andmed[TEGEVUS],$J$8),NA())","v":{"$error":"#N/A"}}]
[{"$nulls":5},36,"2012-06-05",{"$f":"SUMIFS(Andmed[KILOMEETRID],Andmed[KUUPÄEV],G45,Andmed[TEGEVUS],$H$8)","v":0},{"$f":"IFERROR(AVERAGEIFS(Andmed[km/l],Andmed[KUUPÄEV],G45,Andmed[TEGEVUS],$I$8),NA())","v":{"$error":"#N/A"}},{"$f":"IFERROR(AVERAGEIFS(Andmed[s/km],Andmed[KUUPÄEV],G45,Andmed[TEGEVUS],$J$8),NA())","v":{"$error":"#N/A"}}]
[{"$nulls":5},37,"2012-06-06",{"$f":"SUMIFS(Andmed[KILOMEETRID],Andmed[KUUPÄEV],G46,Andmed[TEGEVUS],$H$8)","v":0},{"$f":"IFERROR(AVERAGEIFS(Andmed[km/l],Andmed[KUUPÄEV],G46,Andmed[TEGEVUS],$I$8),NA())","v":{"$error":"#N/A"}},{"$f":"IFERROR(AVERAGEIFS(Andmed[s/km],Andmed[KUUPÄEV],G46,Andmed[TEGEVUS],$J$8),NA())","v":{"$error":"#N/A"}}]
[{"$nulls":5},38,"2012-06-07",{"$f":"SUMIFS(Andmed[KILOMEETRID],Andmed[KUUPÄEV],G47,Andmed[TEGEVUS],$H$8)","v":0},{"$f":"IFERROR(AVERAGEIFS(Andmed[km/l],Andmed[KUUPÄEV],G47,Andmed[TEGEVUS],$I$8),NA())","v":{"$error":"#N/A"}},{"$f":"IFERROR(AVERAGEIFS(Andmed[s/km],Andmed[KUUPÄEV],G47,Andmed[TEGEVUS],$J$8),NA())","v":{"$error":"#N/A"}}]
[{"$nulls":5},39,"2012-06-08",{"$f":"SUMIFS(Andmed[KILOMEETRID],Andmed[KUUPÄEV],G48,Andmed[TEGEVUS],$H$8)","v":0},{"$f":"IFERROR(AVERAGEIFS(Andmed[km/l],Andmed[KUUPÄEV],G48,Andmed[TEGEVUS],$I$8),NA())","v":{"$error":"#N/A"}},{"$f":"IFERROR(AVERAGEIFS(Andmed[s/km],Andmed[KUUPÄEV],G48,Andmed[TEGEVUS],$J$8),NA())","v":{"$error":"#N/A"}}]
[{"$nulls":5},40,"2012-06-09",{"$f":"SUMIFS(Andmed[KILOMEETRID],Andmed[KUUPÄEV],G49,Andmed[TEGEVUS],$H$8)","v":0},{"$f":"IFERROR(AVERAGEIFS(Andmed[km/l],Andmed[KUUPÄEV],G49,Andmed[TEGEVUS],$I$8),NA())","v":{"$error":"#N/A"}},{"$f":"IFERROR(AVERAGEIFS(Andmed[s/km],Andmed[KUUPÄEV],G49,Andmed[TEGEVUS],$J$8),NA())","v":{"$error":"#N/A"}}]
[{"$nulls":5},41,"2012-06-10",{"$f":"SUMIFS(Andmed[KILOMEETRID],Andmed[KUUPÄEV],G50,Andmed[TEGEVUS],$H$8)","v":0},{"$f":"IFERROR(AVERAGEIFS(Andmed[km/l],Andmed[KUUPÄEV],G50,Andmed[TEGEVUS],$I$8),NA())","v":{"$error":"#N/A"}},{"$f":"IFERROR(AVERAGEIFS(Andmed[s/km],Andmed[KUUPÄEV],G50,Andmed[TEGEVUS],$J$8),NA())","v":{"$error":"#N/A"}}]
[{"$nulls":5},42,"2012-06-11",{"$f":"SUMIFS(Andmed[KILOMEETRID],Andmed[KUUPÄEV],G51,Andmed[TEGEVUS],$H$8)","v":0},{"$f":"IFERROR(AVERAGEIFS(Andmed[km/l],Andmed[KUUPÄEV],G51,Andmed[TEGEVUS],$I$8),NA())","v":{"$error":"#N/A"}},{"$f":"IFERROR(AVERAGEIFS(Andmed[s/km],Andmed[KUUPÄEV],G51,Andmed[TEGEVUS],$J$8),NA())","v":{"$error":"#N/A"}}]
[{"$nulls":5},43,"2012-06-12",{"$f":"SUMIFS(Andmed[KILOMEETRID],Andmed[KUUPÄEV],G52,Andmed[TEGEVUS],$H$8)","v":0},{"$f":"IFERROR(AVERAGEIFS(Andmed[km/l],Andmed[KUUPÄEV],G52,Andmed[TEGEVUS],$I$8),NA())","v":{"$error":"#N/A"}},{"$f":"IFERROR(AVERAGEIFS(Andmed[s/km],Andmed[KUUPÄEV],G52,Andmed[TEGEVUS],$J$8),NA())","v":{"$error":"#N/A"}}]
[{"$nulls":5},44,"2012-06-13",{"$f":"SUMIFS(Andmed[KILOMEETRID],Andmed[KUUPÄEV],G53,Andmed[TEGEVUS],$H$8)","v":0},{"$f":"IFERROR(AVERAGEIFS(Andmed[km/l],Andmed[KUUPÄEV],G53,Andmed[TEGEVUS],$I$8),NA())","v":{"$error":"#N/A"}},{"$f":"IFERROR(AVERAGEIFS(Andmed[s/km],Andmed[KUUPÄEV],G53,Andmed[TEGEVUS],$J$8),NA())","v":{"$error":"#N/A"}}]
[{"$nulls":5},45,"2012-06-14",{"$f":"SUMIFS(Andmed[KILOMEETRID],Andmed[KUUPÄEV],G54,Andmed[TEGEVUS],$H$8)","v":0},{"$f":"IFERROR(AVERAGEIFS(Andmed[km/l],Andmed[KUUPÄEV],G54,Andmed[TEGEVUS],$I$8),NA())","v":{"$error":"#N/A"}},{"$f":"IFERROR(AVERAGEIFS(Andmed[s/km],Andmed[KUUPÄEV],G54,Andmed[TEGEVUS],$J$8),NA())","v":{"$error":"#N/A"}}]
[{"$nulls":5},46,"2012-06-15",{"$f":"SUMIFS(Andmed[KILOMEETRID],Andmed[KUUPÄEV],G55,Andmed[TEGEVUS],$H$8)","v":0},{"$f":"IFERROR(AVERAGEIFS(Andmed[km/l],Andmed[KUUPÄEV],G55,Andmed[TEGEVUS],$I$8),NA())","v":{"$error":"#N/A"}},{"$f":"IFERROR(AVERAGEIFS(Andmed[s/km],Andmed[KUUPÄEV],G55,Andmed[TEGEVUS],$J$8),NA())","v":{"$error":"#N/A"}}]
[{"$nulls":5},47,"2012-06-16",{"$f":"SUMIFS(Andmed[KILOMEETRID],Andmed[KUUPÄEV],G56,Andmed[TEGEVUS],$H$8)","v":0},{"$f":"IFERROR(AVERAGEIFS(Andmed[km/l],Andmed[KUUPÄEV],G56,Andmed[TEGEVUS],$I$8),NA())","v":{"$error":"#N/A"}},{"$f":"IFERROR(AVERAGEIFS(Andmed[s/km],Andmed[KUUPÄEV],G56,Andmed[TEGEVUS],$J$8),NA())","v":{"$error":"#N/A"}}]
[{"$nulls":5},48,"2012-06-17",{"$f":"SUMIFS(Andmed[KILOMEETRID],Andmed[KUUPÄEV],G57,Andmed[TEGEVUS],$H$8)","v":0},{"$f":"IFERROR(AVERAGEIFS(Andmed[km/l],Andmed[KUUPÄEV],G57,Andmed[TEGEVUS],$I$8),NA())","v":{"$error":"#N/A"}},{"$f":"IFERROR(AVERAGEIFS(Andmed[s/km],Andmed[KUUPÄEV],G57,Andmed[TEGEVUS],$J$8),NA())","v":{"$error":"#N/A"}}]
[{"$nulls":5},49,"2012-06-18",{"$f":"SUMIFS(Andmed[KILOMEETRID],Andmed[KUUPÄEV],G58,Andmed[TEGEVUS],$H$8)","v":0},{"$f":"IFERROR(AVERAGEIFS(Andmed[km/l],Andmed[KUUPÄEV],G58,Andmed[TEGEVUS],$I$8),NA())","v":{"$error":"#N/A"}},{"$f":"IFERROR(AVERAGEIFS(Andmed[s/km],Andmed[KUUPÄEV],G58,Andmed[TEGEVUS],$J$8),NA())","v":{"$error":"#N/A"}}]
[{"$nulls":5},50,"2012-06-19",{"$f":"SUMIFS(Andmed[KILOMEETRID],Andmed[KUUPÄEV],G59,Andmed[TEGEVUS],$H$8)","v":0},{"$f":"IFERROR(AVERAGEIFS(Andmed[km/l],Andmed[KUUPÄEV],G59,Andmed[TEGEVUS],$I$8),NA())","v":{"$error":"#N/A"}},{"$f":"IFERROR(AVERAGEIFS(Andmed[s/km],Andmed[KUUPÄEV],G59,Andmed[TEGEVUS],$J$8),NA())","v":{"$error":"#N/A"}}]
[{"$nulls":5},51,"2012-06-20",{"$f":"SUMIFS(Andmed[KILOMEETRID],Andmed[KUUPÄEV],G60,Andmed[TEGEVUS],$H$8)","v":0},{"$f":"IFERROR(AVERAGEIFS(Andmed[km/l],Andmed[KUUPÄEV],G60,Andmed[TEGEVUS],$I$8),NA())","v":{"$error":"#N/A"}},{"$f":"IFERROR(AVERAGEIFS(Andmed[s/km],Andmed[KUUPÄEV],G60,Andmed[TEGEVUS],$J$8),NA())","v":{"$error":"#N/A"}}]
[{"$nulls":5},52,"2012-06-21",{"$f":"SUMIFS(Andmed[KILOMEETRID],Andmed[KUUPÄEV],G61,Andmed[TEGEVUS],$H$8)","v":0},{"$f":"IFERROR(AVERAGEIFS(Andmed[km/l],Andmed[KUUPÄEV],G61,Andmed[TEGEVUS],$I$8),NA())","v":{"$error":"#N/A"}},{"$f":"IFERROR(AVERAGEIFS(Andmed[s/km],Andmed[KUUPÄEV],G61,Andmed[TEGEVUS],$J$8),NA())","v":{"$error":"#N/A"}}]
[{"$nulls":5},53,"2012-06-22",{"$f":"SUMIFS(Andmed[KILOMEETRID],Andmed[KUUPÄEV],G62,Andmed[TEGEVUS],$H$8)","v":0},{"$f":"IFERROR(AVERAGEIFS(Andmed[km/l],Andmed[KUUPÄEV],G62,Andmed[TEGEVUS],$I$8),NA())","v":{"$error":"#N/A"}},{"$f":"IFERROR(AVERAGEIFS(Andmed[s/km],Andmed[KUUPÄEV],G62,Andmed[TEGEVUS],$J$8),NA())","v":{"$error":"#N/A"}}]
[{"$nulls":5},54,"2012-06-23",{"$f":"SUMIFS(Andmed[KILOMEETRID],Andmed[KUUPÄEV],G63,Andmed[TEGEVUS],$H$8)","v":0},{"$f":"IFERROR(AVERAGEIFS(Andmed[km/l],Andmed[KUUPÄEV],G63,Andmed[TEGEVUS],$I$8),NA())","v":{"$error":"#N/A"}},{"$f":"IFERROR(AVERAGEIFS(Andmed[s/km],Andmed[KUUPÄEV],G63,Andmed[TEGEVUS],$J$8),NA())","v":{"$error":"#N/A"}}]
[{"$nulls":5},55,"2012-06-24",{"$f":"SUMIFS(Andmed[KILOMEETRID],Andmed[KUUPÄEV],G64,Andmed[TEGEVUS],$H$8)","v":0},{"$f":"IFERROR(AVERAGEIFS(Andmed[km/l],Andmed[KUUPÄEV],G64,Andmed[TEGEVUS],$I$8),NA())","v":{"$error":"#N/A"}},{"$f":"IFERROR(AVERAGEIFS(Andmed[s/km],Andmed[KUUPÄEV],G64,Andmed[TEGEVUS],$J$8),NA())","v":{"$error":"#N/A"}}]
[{"$nulls":5},56,"2012-06-25",{"$f":"SUMIFS(Andmed[KILOMEETRID],Andmed[KUUPÄEV],G65,Andmed[TEGEVUS],$H$8)","v":0},{"$f":"IFERROR(AVERAGEIFS(Andmed[km/l],Andmed[KUUPÄEV],G65,Andmed[TEGEVUS],$I$8),NA())","v":{"$error":"#N/A"}},{"$f":"IFERROR(AVERAGEIFS(Andmed[s/km],Andmed[KUUPÄEV],G65,Andmed[TEGEVUS],$J$8),NA())","v":{"$error":"#N/A"}}]
[{"$nulls":5},57,"2012-06-26",{"$f":"SUMIFS(Andmed[KILOMEETRID],Andmed[KUUPÄEV],G66,Andmed[TEGEVUS],$H$8)","v":0},{"$f":"IFERROR(AVERAGEIFS(Andmed[km/l],Andmed[KUUPÄEV],G66,Andmed[TEGEVUS],$I$8),NA())","v":{"$error":"#N/A"}},{"$f":"IFERROR(AVERAGEIFS(Andmed[s/km],Andmed[KUUPÄEV],G66,Andmed[TEGEVUS],$J$8),NA())","v":{"$error":"#N/A"}}]
[{"$nulls":5},58,"2012-06-27",{"$f":"SUMIFS(Andmed[KILOMEETRID],Andmed[KUUPÄEV],G67,Andmed[TEGEVUS],$H$8)","v":0},{"$f":"IFERROR(AVERAGEIFS(Andmed[km/l],Andmed[KUUPÄEV],G67,Andmed[TEGEVUS],$I$8),NA())","v":{"$error":"#N/A"}},{"$f":"IFERROR(AVERAGEIFS(Andmed[s/km],Andmed[KUUPÄEV],G67,Andmed[TEGEVUS],$J$8),NA())","v":{"$error":"#N/A"}}]
[{"$nulls":5},59,"2012-06-28",{"$f":"SUMIFS(Andmed[KILOMEETRID],Andmed[KUUPÄEV],G68,Andmed[TEGEVUS],$H$8)","v":0},{"$f":"IFERROR(AVERAGEIFS(Andmed[km/l],Andmed[KUUPÄEV],G68,Andmed[TEGEVUS],$I$8),NA())","v":{"$error":"#N/A"}},{"$f":"IFERROR(AVERAGEIFS(Andmed[s/km],Andmed[KUUPÄEV],G68,Andmed[TEGEVUS],$J$8),NA())","v":{"$error":"#N/A"}}]
[{"$nulls":5},60,"2012-06-29",{"$f":"SUMIFS(Andmed[KILOMEETRID],Andmed[KUUPÄEV],G69,Andmed[TEGEVUS],$H$8)","v":0},{"$f":"IFERROR(AVERAGEIFS(Andmed[km/l],Andmed[KUUPÄEV],G69,Andmed[TEGEVUS],$I$8),NA())","v":{"$error":"#N/A"}},{"$f":"IFERROR(AVERAGEIFS(Andmed[s/km],Andmed[KUUPÄEV],G69,Andmed[TEGEVUS],$J$8),NA())","v":{"$error":"#N/A"}}]